[Event "GER-ch Youth ODJM 2019"]
[Site "Willingen"]
[Date "2019.06.12"]
[Round "5.13"]
[White "Lohr, Maximilian"]
[Black "Dietz, Florian"]
[Result "1/2-1/2"]
[ECO "B20"]
[WhiteElo "1981"]
[BlackElo "2139"]
[Annotator "NA"]
[PlyCount "63"]
[EventDate "2019.06.07"]
[EventType "swiss"]
[EventRounds "9"]
[EventCountry "GER"]
[SourceTitle "playchess.com"]
[Source "ChessBase"]
[SourceQuality "1"]
[TimeControl "40/5400+30:1800+30"]

1. e4 {[%emt 0:00:00]} c5 {[%emt 0:00:00]} 2. d3 {[%emt 0:00:00]} d6 {[%emt 0:01:10]} 3. g3 {[%emt 0:00:11]} g6 {[%emt 0:00:51]} 4. Bg2 {[%emt 0:00:12]} Bg7 {[%emt 0:00:24]} 5. f4 {[%emt 0:00:21]} Nc6 {[%emt 0:01:22]} 6. c3 {[%emt 0:02:02]} e6 {[%emt 0:06:56]} 7. Nf3 {[%emt 0:00:34]} Nge7 {[%emt 0:03:03]} 8. O-O {[%emt 0:00:29]} O-O {[%emt 0:06:37]} 9. Na3 {[%emt 0:04:24]} b6 {[%emt 0:08:49]} 10. Be3 {[%emt 0:02:50]} Ba6 {[%emt 0:03:52]} 11. Re1 {[%emt 0:08:12]} Rc8 {[%emt 0:10:35]} 12. Bf2 {[%emt 0:03:49]} Qd7 {[%emt 0:03:35]} 13. Qd2 {[%emt 0:01:50]} Rc7 {[%emt 0:04:36]} 14. Nc2 {[%emt 0:02:19]} Rfc8 {[%emt 0:03:13]} 15. Rab1 {[%emt 0:10:39]} Na5 {[%emt 0:09:33]} 16. g4 {[%emt 0:06:04]} d5 {[%emt 0:13:30]} 17. e5 {[%emt 0:00:25]} Nac6 {[%emt 0:04:09]} 18. Bh3 {[%emt 0:07:21]} Bb7 {[%emt 0:02:30]} 19. Bg3 {[%emt 0:01:41]} d4 {[%emt 0:02:38]} 20. c4 {[%emt 0:00:18]} Nb4 {[%emt 0:00:27]} 21. Nh4 {[%emt 0:00:56]} Nxc2 {[%emt 0:01:31]} 22. Qxc2 {[%emt 0:00:30]} g5 {[%emt 0:03:25]} 23. fxg5 {[%emt 0:00:56]} Ng6 {[%emt 0:00:05]} 24. Nxg6 {[%emt 0:01:42]} fxg6 {[%emt 0:00:06]} 25. Bg2 {[%emt 0:02:59]} Rf8 {[%emt 0:00:56]} 26. Rf1 {[%emt 0:01:26]} Rcc8 {[%emt 0:01:19]} 27. h4 {[%emt 0:02:27]} Qc7 {[%emt 0:02:05]} 28. Bxb7 {[%emt 0:02:19]} Qxb7 {[%emt 0:00:03]} 29. Qg2 {[%emt 0:00:10]} Qxg2+ {[%emt 0:01:37]} 30. Kxg2 {[%emt 0:00:06]} Rxf1 {[%emt 0:00:34] normal} 31. Rxf1 {[%emt 0:00:26]} Rf8 {[%emt 0:00:10] normal} 32. Rxf8+ {[%emt 0:02:55] normal} 1/2-1/2

[Event "GER-ch Youth ODJM 2019"]
[Site "Willingen"]
[Date "2019.06.12"]
[Round "5.14"]
[White "Wuebker, Paul-Luca"]
[Black "Kracht, Raphael"]
[Result "1/2-1/2"]
[ECO "E11"]
[WhiteElo "2035"]
[BlackElo "1976"]
[Annotator "NA"]
[PlyCount "53"]
[EventDate "2019.06.07"]
[EventType "swiss"]
[EventRounds "9"]
[EventCountry "GER"]
[SourceTitle "playchess.com"]
[Source "ChessBase"]
[SourceQuality "1"]
[TimeControl "40/5400+30:1800+30"]

1. d4 {[%emt 0:00:00]} Nf6 {[%emt 0:02:25]} 2. c4 {[%emt 0:00:00]} e6 {[%emt 0:00:08]} 3. Nf3 {[%emt 0:00:00]} Bb4+ {[%emt 0:00:03]} 4. Nbd2 {[%emt 0:00:00]} O-O {[%emt 0:00:08]} 5. a3 {[%emt 0:00:00]} Be7 {[%emt 0:00:03]} 6. e4 {[%emt 0:00:08]} d5 {[%emt 0:00:03]} 7. e5 {[%emt 0:00:08]} Nfd7 {[%emt 0:00:03]} 8. cxd5 {[%emt 0:00:14]} exd5 {[%emt 0:00:08]} 9. Nb1 {[%emt 0:01:04]} c5 {[%emt 0:07:16]} 10. Nc3 {[%emt 0:00:31]} cxd4 {[%emt 0:01:00]} 11. Qxd4 {[%emt 0:00:19]} Nc5 {[%emt 0:00:25]} 12. Qxd5 {[%emt 0:08:05]} Be6 {[%emt 0:06:04]} 13. Qxd8 {[%emt 0:02:13]} Rxd8 {[%emt 0:00:06]} 14. Be3 {[%emt 0:01:34]} Nc6 {[%emt 0:01:16]} 15. Bxc5 {[%emt 0:03:45]} Bxc5 {[%emt 0:00:06]} 16. Be2 {[%emt 0:09:40]} Bg4 {[%emt 0:07:22]} 17. Na4 {[%emt 0:03:46]} Bf8 {[%emt 0:12:37]} 18. h3 {[%emt 0:03:51]} Bxf3 {[%emt 0:02:10]} 19. Bxf3 {[%emt 0:01:20]} Nxe5 {[%emt 0:11:02]} 20. Bxb7 {[%emt 0:05:12]} Nd3+ {[%emt 0:00:32]} 21. Ke2 {[%emt 0:00:08]} Rab8 {[%emt 0:00:11]} 22. Rhd1 {[%emt 0:00:34]} Nxb2 {[%emt 0:00:25]} 23. Rxd8 {[%emt 0:00:34]} Rxd8 {[%emt 0:00:04]} 24. Nxb2 {[%emt 0:00:09]} Rb8 {[%emt 0:00:03]} 25. Bd5 {[%emt 0:13:14]} Rxb2+ {[%emt 0:00:07]} 26. Ke1 {[%emt 0:00:35] normal} g5 {[%emt 0:12:18]} 27. a4 {[%emt 0:01:58] normal} 1/2-1/2

[Event "GER-ch Youth ODJM 2019"]
[Site "Willingen"]
[Date "2019.06.12"]
[Round "5.15"]
[White "Beesk, Kevin"]
[Black "Korten, Lando"]
[Result "1-0"]
[ECO "A00"]
[WhiteElo "1935"]
[BlackElo "2122"]
[Annotator "NA"]
[PlyCount "35"]
[EventDate "2019.06.07"]
[EventType "swiss"]
[EventRounds "9"]
[EventCountry "GER"]
[SourceTitle "playchess.com"]
[Source "ChessBase"]
[SourceQuality "1"]
[TimeControl "40/5400+30:1800+30"]

1. Nc3 {[%emt 0:00:00]} c5 {[%emt 0:01:36]} 2. Nf3 {[%emt 0:00:00]} Nf6 {[%emt 0:00:16]} 3. e4 {[%emt 0:00:00]} d6 {[%emt 0:00:02]} 4. e5 {[%emt 0:00:00]} dxe5 {[%emt 0:00:46]} 5. Nxe5 {[%emt 0:00:01]} g6 {[%emt 0:00:21]} 6. Bc4 {[%emt 0:02:25]} e6 {[%emt 0:01:03]} 7. Qf3 {[%emt 0:03:52]} Be7 {[%emt 0:13:04]} 8. Bb5+ {[%emt 0:07:03]} Kf8 {[%emt 0:02:31]} 9. d4 {[%emt 0:13:20]} Qxd4 {[%emt 0:15:15]} 10. Bf4 {[%emt 0:12:10]} g5 {[%emt 0:10:12]} 11. Bg3 {[%emt 0:00:02]} g4 {[%emt 0:00:09]} 12. Qe2 {[%emt 0:00:25]} Qb4 {[%emt 0:00:31]} 13. O-O-O {[%emt 0:02:09]} a6 {[%emt 0:01:06]} 14. a3 {[%emt 0:03:18]} Qa5 {[%emt 0:01:26]} 15. Nc4 {[%emt 0:00:29]} Qd8 {[%emt 0:03:04]} 16. Rxd8+ {[%emt 0:01:16]} Bxd8 {[%emt 0:00:08]} 17. Rd1 {[%emt 0:00:18] normal} Ke7 {[%emt 0:02:03]} 18. Bd6# {[%emt 0:00:39] normal} 1-0

[Event "GER-ch Youth ODJM 2019"]
[Site "Willingen"]
[Date "2019.06.12"]
[Round "5.16"]
[White "Weber, Jannis"]
[Black "Dette, Jan"]
[Result "0-1"]
[ECO "C01"]
[WhiteElo "1889"]
[BlackElo "2109"]
[Annotator "NA"]
[PlyCount "35"]
[EventDate "2019.06.07"]
[EventType "swiss"]
[EventRounds "9"]
[EventCountry "GER"]
[SourceTitle "playchess.com"]
[Source "ChessBase"]
[SourceQuality "1"]
[TimeControl "40/5400+30:1800+30"]

1. e4 {[%emt 0:00:00]} e6 {[%emt 0:00:00]} 2. d4 {[%emt 0:00:00]} d5 {[%emt 0:00:00]} 3. exd5 {[%emt 0:00:00]} exd5 {[%emt 0:00:00]} 4. Nf3 {[%emt 0:00:01]} Nf6 {[%emt 0:00:22]} 5. Bd3 {[%emt 0:00:48]} c5 {[%emt 0:03:32]} 6. Qe2+ {[%emt 0:15:10]} Be7 {[%emt 0:01:39]} 7. dxc5 {[%emt 0:03:43]} O-O {[%emt 0:10:57]} 8. O-O {[%emt 0:01:36]} Bxc5 {[%emt 0:00:15]} 9. c3 {[%emt 0:00:46]} Bg4 {[%emt 0:01:07]} 10. h3 {[%emt 0:10:49]} Re8 {[%emt 0:01:06]} 11. Be3 {[%emt 0:00:33]} Bxf3 {[%emt 0:04:50]} 12. Qxf3 {[%emt 0:00:12]} Bxe3 {[%emt 0:00:03]} 13. fxe3 {[%emt 0:00:18]} Qb6 {[%emt 0:00:03]} 14. Qf2 {[%emt 0:04:29]} Qxe3 {[%emt 0:07:13]} 15. Bc2 {[%emt 0:03:24]} Nc6 {[%emt 0:04:54]} 16. Nd2 {[%emt 0:03:15] normal} d4 {[%emt 0:15:44]} 17. cxd4 {[%emt 0:02:42]} Nxd4 {[%emt 0:00:42] normal} 18. Bb3 {[%emt 0:00:55] normal} 0-1

[Event "GER-ch Youth ODJM 2019"]
[Site "Willingen"]
[Date "2019.06.12"]
[Round "6.1"]
[White "Astner, Sebastian"]
[Black "Matthes, Benjamin"]
[Result "1/2-1/2"]
[ECO "B23"]
[WhiteElo "1870"]
[BlackElo "1737"]
[Annotator "NA"]
[PlyCount "57"]
[EventDate "2019.06.07"]
[EventType "swiss"]
[EventRounds "9"]
[EventCountry "GER"]
[SourceTitle "playchess.com"]
[Source "ChessBase"]
[SourceQuality "1"]
[TimeControl "40/5400+30:1800+30"]

1. e4 {[%emt 0:00:00]} c5 {[%emt 0:00:00]} 2. Nc3 {[%emt 0:00:27]} Nc6 {[%emt 0:00:29]} 3. f4 {[%emt 0:00:07]} e6 {[%emt 0:00:34]} 4. Nf3 {[%emt 0:00:19]} d5 {[%emt 0:02:54]} 5. Bb5 {[%emt 0:01:38]} Nge7 {[%emt 0:07:05]} 6. d3 {[%emt 0:03:35]} a6 {[%emt 0:04:23]} 7. Bxc6+ {[%emt 0:00:07]} Nxc6 8. O-O {[%emt 0:01:19]} Be7 {[%emt 0:04:23]} 9. Qe1 {[%emt 0:02:49]} O-O {[%emt 0:02:31]} 10. Qg3 {[%emt 0:03:12]} Nd4 {[%emt 0:10:04]} 11. f5 {[%emt 0:14:03]} dxe4 {[%emt 0:07:26]} 12. dxe4 {[%emt 0:03:14]} exf5 {[%emt 0:16:34]} 13. Nxd4 {[%emt 0:10:21]} cxd4 {[%emt 0:00:08]} 14. Bh6 {[%emt 0:01:57]} Bf6 {[%emt 0:04:59]} 15. Nd5 {[%emt 0:03:00]} Be6 {[%emt 0:10:57]} 16. Nxf6+ Qxf6 {[%emt 0:00:38]} 17. Bf4 {[%emt 0:02:09]} Qg6 {[%emt 0:05:54]} 18. Qxg6 {[%emt 0:01:56]} fxg6 {[%emt 0:01:54]} 19. exf5 {[%emt 0:01:58]} Bxf5 {[%emt 0:01:55]} 20. Be5 {[%emt 0:00:54]} Rfd8 {[%emt 0:04:08]} 21. Rad1 {[%emt 0:01:24]} Rac8 {[%emt 0:06:18]} 22. Bxd4 {[%emt 0:04:15]} Bxc2 {[%emt 0:00:59]} 23. Rd2 {[%emt 0:00:25]} Bf5 {[%emt 0:00:25]} 24. Bc3 {[%emt 0:01:33]} Rxd2 {[%emt 0:00:38]} 25. Bxd2 {[%emt 0:00:31]} Rc2 {[%emt 0:00:25]} 26. Bc3 {[%emt 0:00:13]} Be4 {[%emt 0:03:44]} 27. Rf2 {[%emt 0:00:19]} Rc1+ {[%emt 0:00:06]} 28. Rf1 {[%emt 0:00:04]} Rc2 {[%emt 0:00:18]} 29. Rf2 {[%emt 0:00:04] normal} 1/2-1/2

[Event "GER-ch Youth ODJM 2019"]
[Site "Willingen"]
[Date "2019.06.12"]
[Round "6.2"]
[White "Guenther, Emil"]
[Black "Petersen, Finn Christopher"]
[Result "1-0"]
[ECO "A49"]
[WhiteElo "1689"]
[BlackElo "1780"]
[Annotator "NA"]
[PlyCount "75"]
[EventDate "2019.06.07"]
[EventType "swiss"]
[EventRounds "9"]
[EventCountry "GER"]
[SourceTitle "playchess.com"]
[Source "ChessBase"]
[SourceQuality "1"]
[TimeControl "40/5400+30:1800+30"]

1. Nf3 {[%emt 0:00:00]} Nf6 {[%emt 0:00:00]} 2. d4 {[%emt 0:00:00]} g6 {[%emt 0:01:08]} 3. g3 {[%emt 0:00:00]} b5 {[%emt 0:01:22]} 4. Bg2 {[%emt 0:00:10]} Bb7 {[%emt 0:00:38]} 5. O-O {[%emt 0:00:26]} Bg7 {[%emt 0:01:10]} 6. b3 {[%emt 0:00:35]} O-O {[%emt 0:01:20]} 7. Bb2 {[%emt 0:00:07]} d6 {[%emt 0:02:25]} 8. Nbd2 {[%emt 0:00:18]} Nbd7 {[%emt 0:02:03]} 9. a3 {[%emt 0:08:07]} c5 {[%emt 0:06:11]} 10. c4 {[%emt 0:07:31]} a6 {[%emt 0:05:05]} 11. a4 {[%emt 0:04:31]} b4 {[%emt 0:07:18]} 12. d5 {[%emt 0:02:20]} e5 {[%emt 0:01:22]} 13. e4 {[%emt 0:00:43]} Nh5 {[%emt 0:20:10]} 14. Ne1 {[%emt 0:04:51]} Bh6 {[%emt 0:03:34]} 15. Qe2 {[%emt 0:04:43]} f5 {[%emt 0:12:13]} 16. exf5 {[%emt 0:09:00]} Rxf5 {[%emt 0:00:36]} 17. Ne4 {[%emt 0:02:19]} Qf8 {[%emt 0:07:57]} 18. Bh3 {[%emt 0:07:19]} Rf7 {[%emt 0:01:18]} 19. Be6 {[%emt 0:02:24]} Ndf6 {[%emt 0:06:12]} 20. Nxf6+ {[%emt 0:03:59]} Nxf6 {[%emt 0:00:15]} 21. f4 {[%emt 0:00:54]} exf4 {[%emt 0:12:49]} 22. Bxf6 {[%emt 0:00:30]} Re8 {[%emt 0:00:05]} 23. Bb2 {[%emt 0:03:22]} f3 {[%emt 0:02:40]} 24. Qxf3 {[%emt 0:01:11]} Rxe6 {[%emt 0:00:03]} 25. Qxf7+ {[%emt 0:01:11]} Qxf7 {[%emt 0:00:02]} 26. Rxf7 {[%emt 0:00:31]} Rxe1+ {[%emt 0:00:53]} 27. Rxe1 {[%emt 0:00:08]} Kxf7 {[%emt 0:00:13]} 28. h3 {[%emt 0:00:43]} Bc8 {[%emt 0:00:39]} 29. g4 {[%emt 0:00:12]} Bg5 {[%emt 0:00:52]} 30. Kg2 {[%emt 0:00:21]} h5 {[%emt 0:01:39]} 31. Kf3 {[%emt 0:00:14]} h4 {[%emt 0:01:01]} 32. Bc1 {[%emt 0:01:02]} Bxc1 {[%emt 0:00:30]} 33. Rxc1 {[%emt 0:00:10]} g5 {[%emt 0:00:22]} 34. Ke4 {[%emt 0:00:19]} Bd7 {[%emt 0:01:36]} 35. Rf1+ {[%emt 0:00:15]} Kg7 {[%emt 0:00:59]} 36. Rf5 {[%emt 0:00:13]} Be8 {[%emt 0:00:48]} 37. Rxg5+ {[%emt 0:00:11]} Bg6+ {[%emt 0:00:01]} 38. Rxg6+ {[%emt 0:03:23] normal} 1-0

[Event "GER-ch Youth ODJM 2019"]
[Site "Willingen"]
[Date "2019.06.12"]
[Round "6.3"]
[White "Petri, Ben-Luca"]
[Black "Wichert, Eddi"]
[Result "0-1"]
[ECO "B32"]
[WhiteElo "1895"]
[BlackElo "1702"]
[Annotator "NA"]
[PlyCount "56"]
[EventDate "2019.06.07"]
[EventType "swiss"]
[EventRounds "9"]
[EventCountry "GER"]
[SourceTitle "playchess.com"]
[Source "ChessBase"]
[SourceQuality "1"]
[TimeControl "40/5400+30:1800+30"]

1. e4 {[%emt 0:00:00]} c5 {[%emt 0:00:00]} 2. Nf3 {[%emt 0:00:00]} Nc6 {[%emt 0:00:00]} 3. d4 {[%emt 0:00:00]} cxd4 {[%emt 0:00:00]} 4. Nxd4 {[%emt 0:00:00]} e5 {[%emt 0:04:21]} 5. Nb5 {[%emt 0:00:07]} d6 {[%emt 0:00:05]} 6. N1c3 {[%emt 0:00:30]} Nf6 {[%emt 0:00:27]} 7. Nd5 {[%emt 0:01:16]} Nxd5 {[%emt 0:01:14]} 8. exd5 {[%emt 0:00:22]} Nb8 {[%emt 0:02:23]} 9. c4 {[%emt 0:00:21]} Na6 {[%emt 0:00:42]} 10. Be3 {[%emt 0:00:48]} Bd7 {[%emt 0:18:32]} 11. a4 {[%emt 0:06:08]} Be7 {[%emt 0:06:45]} 12. Be2 {[%emt 0:01:10]} O-O {[%emt 0:00:53]} 13. Qd2 {[%emt 0:01:13]} f5 {[%emt 0:00:58]} 14. f4 {[%emt 0:01:43]} exf4 {[%emt 0:01:38]} 15. Bxf4 {[%emt 0:02:51]} Bxb5 {[%emt 0:00:16]} 16. axb5 {[%emt 0:00:33]} Nc5 {[%emt 0:00:10]} 17. Ra3 {[%emt 0:03:50]} Ne4 {[%emt 0:02:43]} 18. Qc1 {[%emt 0:05:08]} Bf6 {[%emt 0:12:52]} 19. O-O {[%emt 0:02:30]} Bd4+ {[%emt 0:08:40]} 20. Be3 {[%emt 0:03:46]} Qf6 {[%emt 0:01:35]} 21. Ra2 {[%emt 0:02:10]} f4 {[%emt 0:00:22]} 22. Bxd4 {[%emt 0:06:14]} Qxd4+ {[%emt 0:00:05]} 23. Kh1 {[%emt 0:00:16]} Nf2+ {[%emt 0:00:33]} 24. Rxf2 {[%emt 0:00:09]} Qxf2 {[%emt 0:00:04]} 25. Bf3 {[%emt 0:00:33]} Rae8 {[%emt 0:00:28]} 26. Ra1 {[%emt 0:00:04]} Re3 {[%emt 0:01:32]} 27. Qd1 {[%emt 0:01:01]} Rfe8 {[%emt 0:00:21]} 28. Qg1 {[%emt 0:00:11]} Re1 {[%emt 0:00:17] normal} 0-1

[Event "GER-ch Youth ODJM 2019"]
[Site "Willingen"]
[Date "2019.06.12"]
[Round "6.4"]
[White "Werner, Tom"]
[Black "Lauterbach, Kolja"]
[Result "1-0"]
[ECO "A10"]
[WhiteElo "1772"]
[BlackElo "1662"]
[Annotator "NA"]
[PlyCount "105"]
[EventDate "2019.06.07"]
[EventType "swiss"]
[EventRounds "9"]
[EventCountry "GER"]
[SourceTitle "playchess.com"]
[Source "ChessBase"]
[SourceQuality "1"]
[TimeControl "40/5400+30:1800+30"]

1. c4 {[%emt 0:00:00]} f5 {[%emt 0:00:00]} 2. g3 {[%emt 0:00:00]} Nf6 {[%emt 0:00:00]} 3. Bg2 {[%emt 0:00:00]} g6 {[%emt 0:00:00]} 4. Nc3 {[%emt 0:00:00]} Bg7 {[%emt 0:00:01]} 5. e3 {[%emt 0:00:00]} O-O {[%emt 0:00:19]} 6. Nge2 {[%emt 0:00:04]} d6 {[%emt 0:00:20]} 7. d3 {[%emt 0:00:29]} e5 {[%emt 0:00:32]} 8. O-O {[%emt 0:00:16]} Nc6 {[%emt 0:00:18]} 9. b3 {[%emt 0:00:29]} Nh5 {[%emt 0:00:21]} 10. Rb1 {[%emt 0:03:22]} f4 {[%emt 0:02:43]} 11. exf4 {[%emt 0:04:09]} exf4 {[%emt 0:00:18]} 12. Bd5+ {[%emt 0:01:28]} Kh8 {[%emt 0:00:32]} 13. Ne4 {[%emt 0:16:57]} Nb4 {[%emt 0:11:47]} 14. a3 {[%emt 0:05:23]} Nxd5 {[%emt 0:00:43]} 15. cxd5 {[%emt 0:00:11]} Bg4 {[%emt 0:07:16]} 16. f3 {[%emt 0:04:57]} Bh3 {[%emt 0:05:52]} 17. Rf2 {[%emt 0:03:01]} fxg3 {[%emt 0:13:14]} 18. hxg3 {[%emt 0:02:27]} Nf6 {[%emt 0:04:05]} 19. Ng5 {[%emt 0:05:13]} Bd7 {[%emt 0:01:59]} 20. Nf4 {[%emt 0:02:30]} Qc8 {[%emt 0:05:23]} 21. Rh2 {[%emt 0:07:30]} Kg8 {[%emt 0:06:39]} 22. Bb2 {[%emt 0:07:54]} Nh5 {[%emt 0:00:42]} 23. Nxh5 {[%emt 0:04:15]} gxh5 {[%emt 0:00:22]} 24. Bxg7 {[%emt 0:03:34]} Kxg7 {[%emt 0:00:16]} 25. Rxh5 {[%emt 0:02:03]} h6 {[%emt 0:00:08]} 26. Qd2 {[%emt 0:07:13]} Rf6 {[%emt 0:01:07]} 27. Ne4 {[%emt 0:02:59]} Rg6 {[%emt 0:00:18]} 28. Qc3+ {[%emt 0:00:28]} Kf7 {[%emt 0:01:15]} 29. Re1 {[%emt 0:03:34]} Qg8 {[%emt 0:01:41]} 30. Kf2 {[%emt 0:06:31]} c6 {[%emt 0:02:55]} 31. Qd2 {[%emt 0:04:17]} Qg7 {[%emt 0:01:45]} 32. Qf4+ {[%emt 0:00:49]} Kg8 {[%emt 0:00:17]} 33. Nxd6 {[%emt 0:00:38]} Rf8 {[%emt 0:01:11]} 34. Qe5 {[%emt 0:00:52]} Qxe5 {[%emt 0:00:44]} 35. Rexe5 {[%emt 0:01:04]} Rxd6 {[%emt 0:00:42]} 36. f4 {[%emt 0:01:54]} Rxd5 {[%emt 0:00:35]} 37. Rxd5 {[%emt 0:00:21]} cxd5 {[%emt 0:00:24]} 38. Rxh6 {[%emt 0:00:26]} Kg7 {[%emt 0:00:36]} 39. Rh5 {[%emt 0:00:40]} Be6 {[%emt 0:00:38]} 40. Kf3 {[%emt 0:00:28]} Bf5 {[%emt 0:02:03]} 41. Ke3 {[%emt 0:31:06]} Kg6 {[%emt 0:32:25]} 42. g4 {[%emt 0:00:37]} Bxg4 {[%emt 0:02:43]} 43. Rg5+ {[%emt 0:00:07]} Kf6 {[%emt 0:00:36]} 44. Rxg4 {[%emt 0:00:07]} Rd8 {[%emt 0:00:58]} 45. Rg5 {[%emt 0:01:22]} Rd7 {[%emt 0:00:59]} 46. Kd4 {[%emt 0:00:31]} Ke6 {[%emt 0:00:17]} 47. Re5+ {[%emt 0:00:13]} Kf6 {[%emt 0:00:52]} 48. Rxd5 {[%emt 0:00:30]} Rc7 {[%emt 0:00:12]} 49. Rc5 {[%emt 0:00:00]} Rd7+ {[%emt 0:00:00]} 50. Ke4 {[%emt 0:00:00]} Ke6 {[%emt 0:00:00]} 51. d4 {[%emt 0:00:00]} Kf6 {[%emt 0:00:00]} 52. Rf5+ {[%emt 0:00:00]} Kg6 {[%emt 0:00:00]} 53. d5 {normal} 1-0

[Event "GER-ch Youth ODJM 2019"]
[Site "Willingen"]
[Date "2019.06.12"]
[Round "6.5"]
[White "Doll, Alexander"]
[Black "Weber, Samuel"]
[Result "0-1"]
[ECO "C50"]
[WhiteElo "1991"]
[BlackElo "2160"]
[Annotator "ChessBase"]
[PlyCount "64"]
[EventDate "2019.06.07"]
[EventType "swiss"]
[EventRounds "9"]
[EventCountry "GER"]
[SourceTitle "playchess.com"]
[Source "ChessBase"]
[SourceQuality "1"]
[TimeControl "40/5400+30:1800+30"]

1. e4 {[%emt 0:00:00]} e5 {[%emt 0:00:00]} 2. Nf3 {[%emt 0:00:00]} Nc6 {[%emt 0:00:00]} 3. Bc4 {[%emt 0:00:00]} Bc5 {[%emt 0:00:00]} 4. d3 {[%emt 0:00:00]} Nf6 {[%emt 0:00:08]} 5. O-O {[%emt 0:00:13]} O-O {[%emt 0:03:11]} 6. h3 {[%emt 0:03:07]} a6 {[%emt 0:00:59]} 7. Bb3 {[%emt 0:00:23]} d6 {[%emt 0:00:09]} 8. c3 {[%emt 0:00:32]} Re8 {[%emt 0:08:46]} 9. Re1 {[%emt 0:03:59]} Be6 {[%emt 0:00:58]} 10. Nbd2 {[%emt 0:01:47]} Bxb3 {[%emt 0:03:33]} 11. axb3 {[%emt 0:00:22]} d5 {[%emt 0:01:00]} 12. Qe2 {[%emt 0:03:55]} Qd7 {[%emt 0:02:24]} 13. Nf1 {[%emt 0:03:04]} h6 {[%emt 0:04:58]} 14. b4 {[%emt 0:17:19]} Bf8 {[%emt 0:03:44]} 15. Ng3 {[%emt 0:02:43]} Rad8 16. Nh4 {[%emt 0:06:57]} g6 {[%emt 0:07:54]} 17. Qc2 {[%emt 0:12:29]} Re6 {[%emt 0:07:04]} 18. Kf1 {[%emt 0:10:05]} Rd6 {[%emt 0:07:15]} 19. Qb3 {[%emt 0:09:38]} Kh7 {[%emt 0:09:18]} 20. Nf3 {[%emt 0:03:19]} d4 {[%emt 0:05:38]} 21. c4 {[%emt 0:01:15]} Re6 {[%emt 0:00:13]} 22. Bd2 {[%emt 0:02:02]} Qe7 {[%emt 0:02:48]} 23. Ra4 {[%emt 0:02:31]} Nd7 {[%emt 0:00:45]} 24. c5 {[%emt 0:01:43]} a5 {[%emt 0:01:56]} 25. Rc1 {[%emt 0:09:21]} axb4 {[%emt 0:00:56]} 26. Bxb4 {[%emt 0:01:06]} Nxb4 {[%emt 0:00:00]} 27. Rxb4 {[%emt 0:00:10]} Nxc5 {[%emt 0:00:14]} 28. Qc4 {[%emt 0:00:53]} Nxd3 {[%emt 0:01:25]} 29. Qxd3 {[%emt 0:00:57]} Qxb4 {[%emt 0:00:05]} 30. Rxc7 {[%emt 0:00:07]} Re7 {[%emt 0:01:02]} 31. Rxe7 {[%emt 0:00:28]} Qxe7 {[%emt 0:00:27]} 32. Qb5 {[%emt 0:02:04]} d3 {[%emt 0:05:33] normal} 0-1